fUSD/lending_fUSD_20240825
["ID","MTS","AMOUNT","RATE_DAILY","PERIOD"]
[335915919,1724599208610,-929.73,0.0002,35]
[335915920,1724599208635,-2326.91,0.00021589,30]
[335915921,1724599208664,-300.0,0.000225,30]
[335915922,1724599208690,-2612.31,0.000226,31]
[335915923,1724599208715,-2612.31,0.000226,31]
[335915924,1724599208740,-2612.31,0.000226,31]
[335915925,1724599208766,-2612.31,0.000226,31]
[335915926,1724599208791,-2612.31,0.000226,31]
[335915927,1724599208817,-2612.31,0.000226,31]
[335915928,1724599208842,-2612.31,0.000226,31]
[335915929,1724599208868,-2612.31,0.000226,31]
[335915930,1724599208893,-2612.31,0.000226,31]
[335915931,1724599208919,-2612.31,0.000226,31]
[335915932,1724599208945,-2612.31,0.000226,31]
[335915933,1724599208970,-2612.31,0.000226,31]
[335915934,1724599208996,-2612.31,0.000226,31]
[335915935,1724599209021,-2612.31,0.000226,31]
[335915936,1724599209048,-2612.31,0.000226,31]
[335915937,1724599209074,-2612.31,0.000226,31]
[335915938,1724599209102,-2612.31,0.000226,31]
[335915939,1724599209131,-2612.31,0.000226,31]
[335915940,1724599209157,-2612.31,0.000226,31]
[335915941,1724599209183,-2612.31,0.000226,31]
[335915942,1724599209211,-2612.31,0.000226,31]
[335915943,1724599209238,-2612.31,0.000226,31]
[335915944,1724599209264,-2612.31,0.000226,31]
[335915945,1724599209291,-2612.31,0.000226,31]
[335915946,1724599209314,-1000.0,0.00023288,30]
[335915947,1724599209339,-1000.0,0.0002336,30]
[335915948,1724599209517,-1000.0,0.00023432,30]
[335915949,1724599209547,-1000.0,0.00023504,30]
[335915950,1724599209570,-1000.0,0.00023576,30]
[335915951,1724599209593,-1000.0,0.00023648,30]
[335915952,1724599209616,-1000.0,0.0002372,30]
[335915953,1724599209638,-1000.0,0.00023792,30]
[335915954,1724599209661,-1000.0,0.00023864,30]
[335915955,1724599209684,-1000.0,0.00023937,30]
[335915956,1724599209708,-2404.53531324,0.00024,30]
[335915957,1724599209732,-1000.0,0.00024009,30]
[335915958,1724599209755,-1000.0,0.00024081,30]
[335915959,1724599209777,-1000.0,0.00024153,30]
[335915960,1724599209799,-1000.0,0.00024225,30]
[335915961,1724599209822,-1000.0,0.00024297,30]
[335915962,1724599209845,-1000.0,0.00024369,30]
[335915963,1724599209868,-1000.0,0.00024441,30]
[335915964,1724599209892,-2110.0,0.000245,30]
[335915965,1724599209914,-1000.0,0.00024513,30]
[335915966,1724599209938,-1000.0,0.00024585,30]
[335915967,1724599209965,-1974.68753754,0.00024658,30]
[335915968,1724599209991,-2326.91,0.0002475,30]
[335915969,1724599210015,-5000.0,0.0002488,32]
[335915970,1724599210040,-2326.23393805,0.00025,30]
[335915971,1724599210064,-2100.0,0.00025,30]
[335915972,1724599210087,-1092.5001452,0.00025,30]
[335915973,1724599210110,-2110.0,0.00025,30]
[335915974,1724599210136,-2110.0,0.000255,30]
[335915975,1724599210160,-3000.0,0.00026,30]
[335915976,1724599210183,-2110.0,0.00026,30]
[335915977,1724599210212,-2612.31,0.000262,31]
[335915978,1724599210239,-2612.31,0.000262,31]
[335915979,1724599210268,-2612.31,0.000262,31]
[335915980,1724599210302,-2612.31,0.000262,31]
[335915981,1724599210330,-2612.31,0.000262,31]
[335915982,1724599210358,-2612.31,0.000262,31]
[335915983,1724599210385,-2612.31,0.000262,31]
[335915984,1724599210412,-2612.31,0.000262,31]
[335915985,1724599210438,-2612.31,0.000262,31]
[335915986,1724599210466,-2612.31,0.000262,31]
[335915987,1724599210492,-2612.31,0.000262,31]
[335915988,1724599210518,-2612.31,0.000262,31]
[335915989,1724599210544,-2612.31,0.000262,31]
[335915990,1724599210570,-2612.31,0.000262,31]
[335915991,1724599210595,-2612.31,0.000262,31]
[335915992,1724599210620,-2612.31,0.000262,31]
[335915993,1724599210647,-2612.31,0.000262,31]
[335915994,1724599210672,-2612.31,0.000262,31]
[335915995,1724599210699,-2612.31,0.000262,31]
[335915996,1724599210724,-2612.31,0.000262,31]
[335915997,1724599210748,-2612.31,0.000262,31]
[335915998,1724599210773,-2612.31,0.000262,31]
[335915999,1724599210797,-2612.31,0.000262,31]
[335916000,1724599210822,-2612.31,0.000262,31]
[335916001,1724599210846,-2110.0,0.000265,30]
[335916002,1724599210872,-2110.0,0.00027,30]
[335916003,1724599210896,-543689.19760502,0.00027,30]
[335916004,1724599210920,-1440362.80367479,0.00027,30]
[335916005,1724599210944,-500.0,0.00027,30]
[335916006,1724599210968,-500.0,0.00027,30]
[335916007,1724599210990,-500.0,0.00027,30]
[335916008,1724599211014,-500.0,0.00027,30]
[335916009,1724599211038,-500.0,0.00027,30]
[335916010,1724599211061,-500.0,0.00027,30]
[335916011,1724599211084,-500.0,0.00027,30]
[335916012,1724599211107,-500.0,0.00027,30]
[335916013,1724599211133,-500.0,0.00027,30]
[335916014,1724599211158,-500.0,0.00027,30]
[335916015,1724599211181,-500.0,0.00027,30]
[335916016,1724599211210,-500.0,0.00027,30]
[335916017,1724599211235,-445.42921943,0.00027,30]
[335916018,1724599211284,-2000.0,0.00027397,30]
[335916019,1724599211307,-2000.0,0.00027397,30]
[335916020,1724599211330,-2000.0,0.00027397,30]
[335916021,1724599211354,-2000.0,0.00027397,30]
[335916022,1724599211376,-2000.0,0.00027397,30]
[335916023,1724599211399,-2000.0,0.00027397,30]
[335916024,1724599211422,-2000.0,0.00027397,30]
[335916025,1724599211448,-2000.0,0.00027397,30]
[335916026,1724599211477,-2000.0,0.00027397,30]
[335916027,1724599211501,-2000.0,0.00027397,30]
[335916028,1724599211523,-2000.0,0.00027397,30]
[335916029,1724599211545,-2000.0,0.00027397,30]
[335916030,1724599211569,-2000.0,0.00027397,30]
[335916031,1724599211591,-2000.0,0.00027397,30]
[335916032,1724599211614,-2000.0,0.00027397,30]
[335916033,1724599211638,-2000.0,0.00027397,30]
[335916034,1724599211661,-2000.0,0.00027397,30]
[335916035,1724599211684,-2000.0,0.00027397,30]
[335916036,1724599211712,-2000.0,0.00027397,30]
[335916037,1724599211734,-952.07254348,0.00027397,30]
[335916038,1724599211758,-829.47,0.00027397,120]
[335916039,1724599211784,-200.0,0.00027397,60]
[335916040,1724599211809,-150.424406,0.000274,60]
[335916041,1724599211831,-2110.0,0.000275,30]
[335916042,1724599211854,-150.0,0.00027863,120]
[335916043,1724599211877,-2326.91,0.00027912,30]
[335916044,1724599211902,-150.0,0.00027928,120]
[335916045,1724599211927,-150.0,0.00027974,120]
[335916046,1724599211951,-150.0,0.00027995,120]
[335916047,1724599211976,-150.0,0.00027997,120]
[335916048,1724599212000,-150.0,0.00027999,120]
[335916049,1724599212203,-2110.0,0.00028,30]
[335916050,1724599212228,-150.0,0.00028054,120]
[335916051,1724599212251,-829.47,0.00028082,120]
[335916052,1724599212275,-150.0,0.00028322,120]
[335916053,1724599212298,-150.0,0.00028459,120]
[335916054,1724599212321,-150.0,0.00028461,120]
[335916055,1724599212343,-2110.0,0.000285,30]
[335916056,1724599212366,-150.0,0.00028664,120]
[335916057,1724599212388,-800.0,0.00028765,31]
[335916058,1724599212411,-829.47,0.00028767,120]
[335916059,1724599212435,-2100.46259144,0.00028767,120]
[335916060,1724599212461,-150.0,0.00028857,120]
[335916061,1724599212485,-150.0,0.00028907,120]
[335916062,1724599212508,-2390.18935424,0.00029,120]
[335916063,1724599212531,-1800.0,0.00029,30]
[335916064,1724599212555,-2110.0,0.00029,30]
[335916065,1724599212578,-150.0,0.00029018,120]
[335916066,1724599212621,-150.0,0.00029233,120]
[335916067,1724599212645,-829.47,0.00029452,120]
[335916068,1724599212672,-1219.09,0.000295,30]
[335916069,1724599212700,-150.0,0.00029652,120]
[335916070,1724599212724,-150.0,0.00029709,120]
[335916071,1724599212749,-200.0,0.0002972,120]
[335916072,1724599212773,-150.0,0.00029722,120]
[335916073,1724599212797,-150.0,0.00029842,120]
[335916074,1724599212823,-2612.31,0.000299,31]
[335916075,1724599212849,-2612.31,0.000299,31]
[335916076,1724599212877,-2612.31,0.000299,31]
[335916077,1724599212903,-2612.31,0.000299,31]
[335916078,1724599212928,-2612.31,0.000299,31]
[335916079,1724599212953,-2612.31,0.000299,31]
[335916080,1724599212978,-2612.31,0.000299,31]
[335916081,1724599213004,-2612.31,0.000299,31]
[335916082,1724599213031,-2612.31,0.000299,31]
[335916083,1724599213057,-2612.31,0.000299,31]
[335916084,1724599213082,-2612.31,0.000299,31]
[335916085,1724599213108,-2612.31,0.000299,31]
[335916086,1724599213135,-2612.31,0.000299,31]
[335916087,1724599213162,-2612.31,0.000299,31]
[335916088,1724599213190,-2612.31,0.000299,31]
[335916089,1724599213217,-2612.31,0.000299,31]
[335916090,1724599213242,-2612.31,0.000299,31]
[335916091,1724599213266,-2612.31,0.000299,31]
[335916092,1724599213292,-2612.31,0.000299,31]
[335916093,1724599213317,-2612.31,0.000299,31]
[335916094,1724599213343,-2612.31,0.000299,31]
[335916095,1724599213370,-2612.31,0.000299,31]
[335916096,1724599213396,-2612.31,0.000299,31]
[335916097,1724599213423,-2612.31,0.000299,31]
[335916098,1724599213451,-50000.0,0.0003,30]
[335916099,1724599213476,-987.4337678,0.0003,30]
[335916100,1724599213501,-151.0,0.0003,120]
[335916101,1724599213524,-151.0,0.0003,120]
[335916102,1724599213550,-1800.0,0.0003,31]
[335916103,1724599213573,-2000.0,0.0003,120]
[335916104,1724599213598,-300.0,0.0003,30]
[335916105,1724599213622,-1000.0,0.0003,100]
[335916106,1724599213652,-150.0,0.00030091,120]
[335916107,1724599213676,-829.47,0.00030136,120]
[335916108,1724599213699,-200.0,0.00030137,60]
[335916109,1724599213723,-150.0,0.00030159,120]
[335916110,1724599213749,-150.0,0.0003018,120]
[335916111,1724599213774,-150.0,0.00030347,120]
[335916112,1724599213798,-150.0,0.00030509,120]
[335916113,1724599213822,-150.0,0.00030616,120]
[335916114,1724599213846,-3648.31740996,0.00030685,60]
[335916115,1724599213870,-1061.00051292,0.00030685,60]
[335916116,1724599213894,-250.0,0.000308,30]
[335916117,1724599213919,-829.47,0.00030821,120]
[335916118,1724599213942,-151.0,0.00030959,120]
[335916119,1724599213970,-50000.0,0.00031,31]
[335916120,1724599213994,-1800.0,0.00031,32]
[335916121,1724599214018,-2326.91,0.00031073,30]
[335916122,1724599214043,-150.0,0.00031316,120]
[335916123,1724599214066,-150.0,0.00031336,120]
[335916124,1724599214090,-150.0,0.00031392,120]
[335916125,1724599214115,-150.0,0.00031485,120]
[335916126,1724599214143,-3591.56564304,0.000315,30]
[335916127,1724599214168,-829.47,0.00031506,120]
[335916128,1724599214193,-150.0,0.00031618,120]
[335916129,1724599214219,-150.0,0.00031854,120]
[335916130,1724599214243,-2000.0,0.0003189,120]
[335916131,1724599214268,-150.0,0.00031915,120]
[335916132,1724599214293,-151.0,0.00031918,120]
[335916133,1724599214319,-50000.0,0.00032,32]
[335916134,1724599214343,-790.53903336,0.00032,120]
[335916135,1724599214366,-494.55833616,0.00032,120]
[335916136,1724599214389,-1800.0,0.00032,33]
[335916137,1724599214413,-2000.0,0.00032,120]
[335916138,1724599214436,-473967.26732819,0.00032,60]
[335916139,1724599217742,-226032.73267181,0.00032,60]
[335916140,1724599217765,-2023.69,0.00032,30]
[335916141,1724599217789,-150.0,0.00032069,120]
[335916142,1724599217812,-150.0,0.00032127,120]
[335916143,1724599217835,-3648.31740996,0.00032185,60]
[335916144,1724599217858,-829.47,0.00032191,120]
[335916145,1724599217882,-150.0,0.00032476,120]
[335916146,1724599217905,-5285.0,0.000327,35]
[335916147,1724599217928,-150.0,0.0003276,120]
[335916148,1724599217952,-2223.11066779,0.000328,90]
[335916149,1724599217977,-829.47,0.00032876,120]
[335916150,1724599218000,-2633.01,0.00032876,120]
[335916151,1724599218023,-2633.01,0.00032876,120]
[335916152,1724599218047,-2633.01,0.00032876,120]
[335916153,1724599218069,-2633.01,0.00032876,120]
[335916154,1724599218093,-2633.01,0.00032876,120]
[335916155,1724599218117,-2633.01,0.00032876,120]
[335916156,1724599218147,-2633.01,0.00032876,120]
[335916157,1724599218328,-2633.01,0.00032876,120]
[335916158,1724599218353,-2633.01,0.00032876,120]
[335916159,1724599218376,-2633.01,0.00032876,120]
[335916160,1724599218400,-2633.01,0.00032876,120]
[335916161,1724599218425,-2633.01,0.00032876,120]
[335916162,1724599218449,-2633.01,0.00032876,120]
[335916163,1724599218473,-2633.01,0.00032876,120]
[335916164,1724599218497,-2633.01,0.00032876,120]
[335916165,1724599218520,-2633.01,0.00032876,120]
[335916166,1724599218544,-2633.01,0.00032876,120]
[335916167,1724599218567,-2633.01,0.00032876,120]
[335916168,1724599218589,-2633.01,0.00032876,120]
[335916169,1724599218612,-2633.01,0.00032876,120]
[335916170,1724599218635,-2633.01,0.00032876,120]
[335916171,1724599218658,-2633.01,0.00032876,120]
[335916172,1724599218681,-2633.01,0.00032876,120]
[335916173,1724599218705,-2633.16659384,0.00032876,120]
[335916174,1724599218728,-248.27725591,0.00032877,60]
[335916175,1724599218751,-151.0,0.00032877,120]
[335916176,1724599218776,-50000.0,0.00033,33]
[335916177,1724599218800,-1800.0,0.00033,34]
[335916178,1724599218823,-1000000.0,0.00033,60]
[335916179,1724599218845,-160.79640176,0.00033,120]
[335916180,1724599218867,-150.0,0.00033,30]
[335916181,1724599218889,-501.87499072,0.00033,60]
[335916182,1724599218911,-936.08340544,0.00033,30]
[335916183,1724599218935,-150.0,0.00033107,120]
[335916184,1724599218959,-150.0,0.00033145,120]
[335916185,1724599218982,-4293.32,0.00033151,120]
[335916186,1724599219005,-19343.53,0.00033151,120]
[335916187,1724599219030,-150.0,0.00033202,120]
[335916188,1724599219054,-150.0,0.00033419,120]
[335916189,1724599219080,-2612.31,0.000335,31]
[335916190,1724599219107,-2612.31,0.000335,31]
[335916191,1724599219138,-2612.31,0.000335,31]
[335916192,1724599219166,-2612.31,0.000335,31]
[335916193,1724599219194,-2612.31,0.000335,31]
[335916194,1724599219222,-2612.31,0.000335,31]
[335916195,1724599219248,-2612.31,0.000335,31]
[335916196,1724599219275,-2612.31,0.000335,31]
[335916197,1724599219300,-2612.31,0.000335,31]
[335916198,1724599219325,-2612.31,0.000335,31]
[335916199,1724599219350,-2612.31,0.000335,31]
[335916200,1724599219376,-2612.31,0.000335,31]
[335916201,1724599219401,-150.0,0.00033506,120]
[335916202,1724599219426,-829.47,0.00033561,120]
[335916203,1724599219451,-150.0,0.00033674,120]
[335916204,1724599219473,-3648.31740996,0.00033685,60]
[335916205,1724599219496,-150.0,0.00033722,120]
[335916206,1724599219519,-2686.71,0.000338,30]
[335916207,1724599219542,-151.0,0.00033836,120]
[335916208,1724599219566,-50000.0,0.00034,34]
[335916209,1724599219589,-1800.0,0.00034,35]
[335916210,1724599219613,-1000000.0,0.00034,60]
[335916211,1724599219635,-1900.73679771,0.00034,120]
[335916212,1724599219658,-2043.3805753,0.00034,30]
[335916213,1724599219681,-2000.0,0.00034,120]
[335916214,1724599219706,-805.55882738,0.00034,120]
[335916215,1724599219731,-150.0,0.00034112,120]
[335916216,1724599219755,-150.0,0.00034116,120]
[335916217,1724599219779,-2326.91,0.00034234,30]
[335916218,1724599219804,-829.47,0.00034246,120]
[335916219,1724599219829,-150.0,0.00034353,120]
[335916220,1724599219851,-4400.0,0.000345,120]
[335916221,1724599219876,-150.0,0.00034505,120]
[335916222,1724599219900,-800.0,0.00034567,31]
[335916223,1724599219924,-150.0,0.00034682,120]
[335916224,1724599219947,-151.0,0.00034795,120]
[335916225,1724599219970,-1000.0,0.00034867,30]
[335916226,1724599219993,-2000.0,0.0003489,120]
[335916227,1724599220018,-507230.65699242,0.000349,120]
[335916228,1724599225291,-3339.71710465,0.000349,120]
[335916229,1724599225321,-150.0,0.00034918,120]
[335916230,1724599225349,-829.47,0.00034931,120]
[335916231,1724599225379,-50000.0,0.00035,35]
[335916232,1724599225406,-1000000.0,0.00035,60]
[335916233,1724599225433,-2340.80914403,0.00035,120]
[335916234,1724599225459,-150.0,0.00035,30]
[335916235,1724599225486,-3324.35188,0.00035,120]
[335916236,1724599225513,-1128.0,0.00035,120]
[335916237,1724599225539,-1000.0,0.00035,120]
[335916238,1724599225565,-1000.0,0.00035,120]
[335916239,1724599225592,-2000.0,0.00035,30]
[335916240,1724599225619,-271.87917841,0.00035,30]
[335916241,1724599225646,-761.06099854,0.00035,90]
[335916242,1724599225672,-414.0,0.00035,120]
[335916243,1724599225698,-2000.08677176,0.00035,120]
[335916244,1724599225727,-3000.0,0.00035,30]
[335916245,1724599225753,-155.528996,0.00035,30]
[335916246,1724599225780,-155.528996,0.00035,30]
[335916247,1724599225809,-1800.0,0.00035,36]
[335916248,1724599225834,-286.28135,0.00035,120]
[335916249,1724599225861,-896.6708672,0.00035,30]
[335916250,1724599225888,-5000.0,0.00035,61]
[335916251,1724599225915,-500.0,0.00035,120]
[335916252,1724599225943,-150.0,0.00035016,120]
[335916253,1724599225971,-150.0,0.00035048,120]
[335916254,1724599225998,-150.0,0.00035078,120]
[335916255,1724599226030,-3648.31740996,0.00035185,60]
[335916256,1724599226058,-150.0,0.0003541,120]
[335916257,1724599226086,-150.0,0.00035459,120]
[335916258,1724599226111,-3911.8870043,0.00035475,100]
[335916259,1724599226144,-150.0,0.00035475,120]
[335916260,1724599226170,-2763.05768932,0.000355,120]
[335916261,1724599226200,-829.47,0.00035616,120]
[335916262,1724599226229,-200.0,0.00035616,60]
[335916263,1724599226444,-150.0,0.00035639,120]
[335916264,1724599226471,-150.0,0.00035684,120]
[335916265,1724599226493,-151.0,0.00035753,120]
[335916266,1724599226518,-280002.64836501,0.000358,30]
[335916267,1724599226542,-150.0,0.00035844,120]
[335916268,1724599226565,-150.0,0.00035844,120]
[335916269,1724599226591,-50000.0,0.00036,36]
[335916270,1724599226612,-1800.0,0.00036,37]
[335916271,1724599226634,-2000.0,0.00036,120]
[335916272,1724599226657,-4613.50102301,0.00036,60]
[335916273,1724599226679,-1000.0,0.00036,120]
[335916274,1724599226702,-151.0,0.00036,120]
[335916275,1724599226725,-6164.82101984,0.00036,120]
[335916276,1724599226750,-1000000.0,0.00036,60]
[335916277,1724599226773,-170.02930203,0.00036,120]
[335916278,1724599226797,-2000.0,0.00036,120]
[335916279,1724599226820,-1208.07,0.00036,120]
[335916280,1724599226843,-200.0,0.00036,120]
[335916281,1724599226866,-3000.0,0.00036,120]
[335916282,1724599226889,-1102.87595207,0.00036,120]
[335916283,1724599226912,-150.0,0.0003609,120]
[335916284,1724599226935,-5813.5,0.00036114,54]
[335916285,1724599226960,-150.0,0.00036267,120]
[335916286,1724599226985,-829.47,0.00036301,120]
[335916287,1724599227008,-1172.52734843,0.00036597,30]
[335916288,1724599227031,-831.82825057,0.000366,30]
[335916289,1724599227055,-1172.52734843,0.00036615,30]
[335916290,1724599227079,-1172.52734843,0.00036626,30]
[335916291,1724599227103,-150.0,0.00036635,120]
[335916292,1724599227130,-150.0,0.00036636,120]
[335916293,1724599227154,-3648.31740996,0.00036685,60]
[335916294,1724599227178,-1172.52734843,0.00036694,30]
[335916295,1724599227203,-1172.52734843,0.00036697,30]
[335916296,1724599227231,-151.0,0.00036712,120]
[335916297,1724599227255,-2994.24103197,0.000368,48]
[335916298,1724599227280,-150.0,0.00036841,120]
[335916299,1724599227304,-150.0,0.00036875,120]
[335916300,1724599227327,-410.0,0.00036986,90]
[335916301,1724599227350,-829.47,0.00036986,120]
[335916302,1724599227377,-50000.0,0.00037,37]
[335916303,1724599227401,-900.0,0.00037,38]
[335916304,1724599227425,-1000000.0,0.00037,60]
[335916305,1724599227451,-463890.53937901,0.00037,120]
[335916306,1724599227481,-300.0,0.00037,120]
[335916307,1724599227507,-43584.20424677,0.00037,120]
[335916308,1724599227530,-5759.88269269,0.00037,30]
[335916309,1724599227555,-500.0,0.00037,120]
[335916310,1724599227581,-2039.2583981,0.00037,120]
[335916311,1724599227605,-918.03332712,0.00037035,40]
[335916312,1724599227630,-150.0,0.00037043,120]
[335916313,1724599227655,-5463.51721332,0.000372,60]
[335916314,1724599227678,-150.0,0.00037317,120]
[335916315,1724599227701,-50000.0,0.00037329,120]
[335916316,1724599227729,-2326.91,0.00037395,30]
[335916317,1724599227752,-150.0,0.00037436,120]
[335916318,1724599227775,-12235.11923616,0.00037478,31]
[335916319,1724599227798,-26455.0,0.000375,45]
[335916320,1724599227821,-150.0,0.00037559,120]
[335916321,1724599227844,-150.0,0.00037589,120]
[335916322,1724599227866,-79811.0,0.0003765,30]
[335916323,1724599227889,-500.0,0.00037654,60]
[335916324,1724599227912,-829.47,0.00037671,120]
[335916325,1724599227935,-151.0,0.00037671,120]
[335916326,1724599227958,-87777.0,0.0003777,40]
[335916327,1724599227983,-80000.0,0.0003785,60]
[335916328,1724599228008,-150.0,0.00037869,120]
[335916329,1724599228031,-50000.0,0.0003787,60]
[335916330,1724599228053,-410.0,0.00037886,60]
[335916331,1724599228076,-150.0,0.00037889,120]
[335916332,1724599228099,-2649.0,0.0003789,54]
[335916333,1724599228124,-70000.0,0.0003792,90]
[335916334,1724599228148,-410.0,0.00037986,90]
[335916335,1724599228171,-302.47936947,0.00037999,120]
[335916336,1724599228198,-50000.0,0.00038,38]
[335916337,1724599228224,-385664.35,0.00038,30]
[335916338,1724599228247,-1877.0734059,0.00038,30]
[335916339,1724599228270,-4000.0,0.00038,60]
[335916340,1724599228294,-20024.89110787,0.00038,120]
[335916341,1724599228317,-10998.0,0.00038,45]
[335916342,1724599228339,-645.0074,0.00038,90]
[335916343,1724599228364,-19337.73773681,0.00038,60]
[335916344,1724599231634,-980662.26226319,0.00038,60]
[335916345,1724599231657,-3352.00864606,0.00038,30]
[335916346,1724599231680,-755.69799949,0.00038,120]
[335916347,1724599231702,-600.0,0.00038,120]
[335916348,1724599231727,-900.0,0.00038,39]
[335916349,1724599231752,-2000.0,0.00038,120]
[335916350,1724599231774,-290.7218,0.00038,90]
[335916351,1724599231797,-57573.78,0.00038,60]
[335916352,1724599231820,-2242.08960967,0.00038,120]
[335916353,1724599231844,-5692.16034472,0.00038,120]
[335916354,1724599231867,-600.9235029,0.00038,30]
[335916355,1724599231890,-155.528996,0.00038,38]
[335916356,1724599231915,-150.0,0.00038121,120]
[335916357,1724599231940,-150.0,0.00038137,120]
[335916358,1724599231966,-150.0,0.00038174,120]
[335916359,1724599231990,-3648.31740996,0.00038185,60]
[335916360,1724599232015,-150.0,0.0003823,120]
[335916361,1724599232040,-829.47,0.00038356,120]
[335916362,1724599232063,-200.0,0.00038356,60]
[335916363,1724599237277,271.114,0.00036897,30]
[335916364,1724599252535,-150.0,0.00038357,120]
[335916365,1724599252558,-7619.22,0.000384,120]
[335916366,1724599252581,-836.46,0.000384,120]
[335916367,1724599252758,-773.88,0.000384,120]
[335916368,1724599252783,-819.89,0.000384,120]
[335916369,1724599252807,-150.0,0.00038409,120]
[335916370,1724599252831,-150.0,0.00038479,120]
[335916371,1724599252855,-941.41621681,0.000385,120]
[335916372,1724599252879,-150.0,0.000385,120]
[335916373,1724599252903,-17486.50691577,0.000385,120]
[335916374,1724599252926,-151.0,0.0003863,120]
[335916375,1724599252950,-1931.60157201,0.000388,120]
[335916376,1724599252974,-150.0,0.00038859,120]
[335916377,1724599252998,-6059.52048037,0.0003888,90]
[335916378,1724599253022,-500.0,0.0003898,120]
[335916379,1724599253046,-500.0,0.00039,120]
[335916380,1724599253069,-1000.0,0.00039,120]
[335916381,1724599253092,-920.20825128,0.00039,120]
[335916382,1724599253118,-1000000.0,0.00039,60]
[335916383,1724599253146,-200.0,0.00039,120]
[335916384,1724599253171,-501.24470722,0.00039,120]
[335916385,1724599253196,-5981.08239635,0.00039,120]
[335916386,1724599253221,-2000.0,0.00039,120]
[335916387,1724599253247,-9000.0,0.00039,120]
[335916388,1724599253271,-1000.0,0.00039,120]
[335916389,1724599253294,-199.24251378,0.00039,120]
[335916390,1724599253319,-1009.0,0.00039,120]
[335916391,1724599253343,-36612.82132963,0.00039,120]
[335916392,1724599253367,-829.47,0.00039041,120]
[335916393,1724599253391,-150.0,0.00039097,120]
[335916394,1724599253416,-5123.34561068,0.0003919,90]
[335916395,1724599253439,-5025.6,0.0003919,120]
[335916396,1724599253463,-150.0,0.00039226,120]
[335916397,1724599253496,-150.0,0.00039386,120]
[335916398,1724599253519,-2288.97270548,0.000394,120]
[335916399,1724599253543,-150.0,0.00039415,120]
[335916400,1724599253568,-618402.0,0.0003944,60]
[335916401,1724599253593,-150.0,0.0003947,120]
[335916402,1724599253616,-6342.0,0.00039529,74]
[335916403,1724599253639,-150.0,0.0003958,120]
[335916404,1724599253663,-200.0,0.00039582,120]
[335916405,1724599253688,-151.0,0.00039589,120]
[335916406,1724599253714,-150.0,0.00039604,120]
[335916407,1724599253738,-3648.31740996,0.00039685,60]
[335916408,1724599253762,-7308.32530304,0.000397,120]
[335916409,1724599253788,-1047.942943,0.0003972,120]
[335916410,1724599253814,-829.47,0.00039726,120]
[335916411,1724599253840,-2621.0,0.00039797,56]
[335916412,1724599253865,-1839.48565745,0.000398,120]
[335916413,1724599253890,-7464.80488086,0.00039898,120]
[335916414,1724599253916,-560.97565389,0.00039898,90]
[335916415,1724599253940,-763.89401116,0.00039898,90]
[335916416,1724599253965,-150.0,0.00039899,120]
[335916417,1724599253990,-1237560.30144126,0.000399,120]
[335916418,1724599263549,-648149.59786929,0.000399,120]